Cogmind - Beta 14 @@@ ROGUE MODE // 2024.12.01 @ 02:07:43 Player: PDD Result: Destroyed by S-10 Pest with Light Assault Rifle Performance ------------- Evolutions (1) 500 Regions Visited (2) 400 Robots Destroyed (31) 155 Value Destroyed (492) 492 Prototype IDs (3) 60 Alien Tech Used (0) 0 Bonus (0) 0 TOTAL SCORE: 1607 Bonus ------- None Cogmind --------- Core Integrity 0/400 Matter 237/300 Energy 33/100 System Corruption 0% Temperature Cool (21) Movement Core (100) Ox1 Location -9/Materials Parts ------- > --- POWER (1) -------- (None) > --- PROPULSION (2) --- (None) > --- UTILITY (4) ------ Small Storage Unit Terrain Scan Processor > --- WEAPON (2) ------- (None) > --- INVENTORY (8) ---- Light Treads Light Treads Cooling System Improved Terrain Scanner Terrain Scan Processor ECM Suite Peak State ------------ > --- POWER ------------ Ion Engine > --- PROPULSION ------- Improved Treads Improved Treads > --- UTILITY ---------- Small Storage Unit Improved Terrain Scanner Terrain Scan Processor Seismic Detector > --- WEAPON ----------- Medium Laser Flail > --- INVENTORY -------- Ion Engine Light Treads Light Treads Cooling System Improved Terrain Scanner Terrain Scan Processor ECM Suite Mining Laser [Rating: 16] Favorites ----------- Power Ion Engine Engine Ion Engine Propulsion Light Treads Treads Light Treads Utility Small Storage Unit Device Improved Terrain Scanner Storage Small Storage Unit Processor Terrain Scan Processor Weapon Small Laser Energy Gun Small Laser Energy Cannon Light EM Pulse Cannon Ballistic Gun Assault Rifle Special Weapon Mining Laser Impact Weapon Flail Build | -11 -10 -9 ------- Run | Yrd Mat Mat Slots Evolved 2 | . . 2 Power . | . . . Propulsion . | . . . Utility 2 | . . 2 Weapon . | . . . Parts Attached 29 | 9 9 11 Power 4 | 1 2 1 Engine 4 | 1 2 1 Core . | . . . Reactor . | . . . Propulsion 6 | 2 2 2 Treads 6 | 2 2 2 Leg . | . . . Wheel . | . . . Hover . | . . . Flight . | . . . Utility 7 | 3 1 3 Device 5 | 2 1 2 Storage 1 | 1 . . Processor 1 | . . 1 Hackware . | . . . Protection . | . . . Artifact . | . . . Weapon 12 | 3 4 5 Energy Gun 4 | 2 1 1 Energy Cannon 1 | . . 1 Ballistic Gun 4 | 1 1 2 Ballistic Cannon . | . . . Launcher . | . . . Special Weapon 1 | . . 1 Impact Weapon 2 | . 2 . Slashing Weapon . | . . . Piercing Weapon . | . . . Special Melee Weapon . | . . . Unidentified Prototypes . | . . . Parts Lost 11 | . 1 10 Power 2 | . . 2 Propulsion 2 | . . 2 Utility 2 | . . 2 Weapon 5 | . 1 4 Highest Loss Streak 9 | . 1 9 To Critical Strikes . | . . . Average Slot Usage (%) 96 | . 98 89 Engine 12 | . 14 10 Treads 25 | . 28 19 Device 15 | . 14 18 Storage 13 | . 14 11 Processor 3 | . . 11 Energy Gun 11 | . 15 3 Ballistic Gun 6 | . 6 7 Impact Weapon 5 | . 5 6 Peak Build Rating 16 | 10 12 16 Average Rating 10 | 5 10 13 On Entrance 6 | . 10 9 Naked Turns . | . . . Heaviest Build 16 | 11 16 16 Greatest Support 46 | 40 40 46 Greatest Overweight (x) 3 | . . 3 Average Overweight (x) . | . . . Largest Inventory Capacity 8 | 8 8 8 Average Capacity 7 | 7 8 8 Most Carried 8 | 8 8 8 Average Carried 6 | 3 7 7 Final Capacity 8 | 8 8 8 Final Carried 8 | 8 8 6 Class Distribution -------------------- 91% | Mutant 8% | Scavenger-Mutant Dominant Class ---------------- Mutant | -10/Materials Mutant | -9/Materials Resources | -11 -10 -9 ----------- Run | Yrd Mat Mat Matter Collected 459 | 290 135 34 Remotely . | . . . Salvage Created 818 | 252 422 144 Parts 49 | 22 19 8 Haulers Intercepted . | . . . Recyclers Shooed 3 | 1 1 1 Parts Field Recycled . | . . . Retrieved Matter . | . . . Parts Self-Destructed . | . . . Prevented . | . . . Kills | -11 -10 -9 ------- Run | Yrd Mat Mat Combat Hostiles Destroyed 18 | . 12 6 Melee 2 | . 2 . Guns 15 | . 10 5 Cannons 1 | . . 1 Classes Destroyed 5 | 3 2 . Worker 5 | 2 3 . Tunneler 7 | 7 . . Recycler 1 | 1 . . Swarmer 9 | . 5 4 Grunt 9 | . 7 2 Best Kill Streak 5 | 5 3 4 Combat Bots Only 4 | . 3 4 Max Kills in Single Turn 1 | 1 1 1 Gunslinging . | . . . Exploded . | . . . Melee 1 | . 1 . Uniques/NPCs Destroyed . | . . . Combat | -11 -10 -9 -------- Run | Yrd Mat Mat Hostile Shots Fired 247 | . 92 155 Missed 73 | . 35 38 Damage Taken 1952 | . 691 1261 Core 570 | . 161 409 Absorbed by Shields . | . . . Core Remaining (%) 67 | 100 35 . Volleys Fired 81 | 13 33 35 Largest 2 | 2 2 2 Hottest 105 | 80 105 56 Shots Fired 131 | 26 63 42 Gun 129 | 26 63 40 Cannon 2 | . . 2 Launcher . | . . . Special . | . . . Kinetic 47 | . 20 27 Thermal 82 | 26 43 13 Explosive . | . . . Electromagnetic 2 | . . 2 Robot Hit Streak 19 | 9 19 9 Robot Miss Streak 4 | 1 3 4 Penetration Max . | . . . Secondary Targets 2 | . 2 . Max Gunslinging Chain 1 | . 1 . Shots Hit Robots 102 | 18 57 27 Core Hits 42 | 11 20 11 Critical Kills . | . . . Critical Parts Destroyed 1 | . 1 . Critical Strikes 1 | . 1 . Smash 1 | . 1 . Melee Attacks 15 | . 13 2 Impact 15 | . 13 2 Slashing . | . . . Piercing . | . . . Sneak Attacks 1 | . 1 . Combat Hostiles . | . . . Follow-up Attacks 1 | . 1 . Damage Inflicted 1444 | 198 980 266 Guns 980 | 198 560 222 Cannons 44 | . . 44 Explosions . | . . . Melee 413 | . 413 . Ramming 7 | . 7 . Kinetic 331 | . 196 135 Thermal 649 | 198 364 87 Explosive . | . . . Electromagnetic 44 | . . 44 Impact 413 | . 413 . Slashing . | . . . Piercing . | . . . Highest Corruption . | . . . Average Corruption . | . . . Corruption Purged . | . . . Corruption Blocked . | . . . Overload Shots . | . . . Overflow Damage 155 | . 155 . Projectiles . | . . . Explosions . | . . . Melee 155 | . 155 . Knockbacks 5 | . 5 . Impact 4 | . 4 . Kinetic . | . . . Secondary 1 | . 1 . Self-Inflicted Damage . | . . . Shots . | . . . Rammed 4 | . 4 . Targets Rammed 4 | . 4 . Kicked . | . . . Crushed . | . . . Highest Temperature 192 | 126 192 36 Average Temperature 45 | 50 61 11 Received Heat Transfer 849 | . 312 537 Siege Activations . | . . . Robots Corrupted 1 | . 1 . Combat Hostiles . | . . . Parts Fried 3 | . 3 . Impact Corruptions 6 | . 6 . Robots Melted . | . . . Combat Hostiles . | . . . Parts Melted 4 | 2 2 . Heat Transferred 1568 | 450 859 259 Parts Sabotaged . | . . . Parts Stolen . | . . . Parts Stripped . | . . . Power Chain Reactions . | . . . Alert | -11 -10 -9 ------- Run | Yrd Mat Mat Peak Influence 308 | 50 308 162 Initial 68 | . 32 68 Average 114 | 17 156 115 Maximum Alert Level 1 | . 1 . Low Security (%) 83 | 100 68 100 Level 1 16 | . 31 . Level 2 . | . . . Level 3 . | . . . Level 4 . | . . . Level 5 . | . . . High Security . | . . . Max Security . | . . . Squads Dispatched 1 | . 1 . Investigation . | . . . Extermination . | . . . Reinforcement 1 | . 1 . Assault . | . . . Garrison . | . . . Intercept . | . . . Searches Triggered . | . . . Construction Impeded . | . . . Haulers Reinforced . | . . . Active Scanning Responses . | . . . Cargo Convoy Interrupts . | . . . Stealth | -11 -10 -9 --------- Run | Yrd Mat Mat Distress Signals 3 | . 2 1 Communications Jammed . | . . . Distress Signals . | . . . Times Spotted 35 | . 22 13 Peak Tracking Total 8 | . 5 8 Tactical Retreats . | . . . Traps | -11 -10 -9 ------- Run | Yrd Mat Mat Traps Triggered . | . . . Indirectly . | . . . Trap Hack Attempts . | . . . Triggered . | . . . Disarmed . | . . . Reprogrammed . | . . . Reused . | . . . Traps Extracted . | . . . Installed . | . . . Triggered . | . . . Machines | -11 -10 -9 ---------- Run | Yrd Mat Mat Machines Disabled 1 | . 1 . Max in Single Turn 1 | . 1 . Machines Repaired . | . . . Machines Dismantled . | . . . Machines Sabotaged . | . . . Overloaded Fab Kills . | . . . Hacking | -11 -10 -9 --------- Run | Yrd Mat Mat Machines Accessed 2 | . 1 1 Terminals 2 | . 1 1 Fabricators . | . . . Repair Stations . | . . . Recycling Units . | . . . Scanalyzers . | . . . Garrison Access . | . . . Total Hacks 4 | . 3 1 Successful 2 | . 1 1 Failed 2 | . 2 . Catastrophic 2 | . 2 . Database Lockouts . | . . . Manual . | . . . Terminals 4 | . 3 1 Fabricators . | . . . Repair Stations . | . . . Recycling Units . | . . . Scanalyzers . | . . . Garrison Access . | . . . Terminal Hacks 2 | . 1 1 Record 1 | . 1 . Prototype ID Bank 1 | . . 1 Fabricator Hacks . | . . . Repair Station Hacks . | . . . Recycling Unit Hacks . | . . . Scanalyzer . | . . . Garrison Access Hacks . | . . . Unauthorized Hacks . | . . . Terminals . | . . . Fabricators . | . . . Repair Stations . | . . . Recycling Units . | . . . Scanalyzers . | . . . Garrison Access . | . . . Data Cores Recovered . | . . . Used . | . . . Hacking Detections 2 | . 1 1 Full Trace Events 1 | . 1 . Feedback Events . | . . . Feedback Blocked . | . . . Robot Schematics Acquired . | . . . Robots Built . | . . . Authchips . | . . . Time . | . . . Total Robot Build Rating . | . . . Part Schematics Acquired . | . . . Parts Built . | . . . Authchips . | . . . Time . | . . . Total Part Build Rating . | . . . Parts Repaired . | . . . Time . | . . . Parts Recycled . | . . . Recycled Matter . | . . . Retrieved Matter . | . . . Retrieved Components . | . . . Parts Scanalyzed . | . . . Part Schematics Acquired . | . . . Parts Damaged . | . . . Bothacking | -11 -10 -9 ------------ Run | Yrd Mat Mat Used RIF Installer . | . . . Robots Hacked . | . . . Non-combat . | . . . Combat . | . . . Robot Hacks Applied . | . . . Relay Couplers Released . | . . . Fabnet Peak Effective % . | . . . Robots Rewired . | . . . Allies Hacked . | . . . Hacks Repelled . | . . . Allies | -11 -10 -9 -------- Run | Yrd Mat Mat Total Allies . | . . . Largest Group . | . . . Highest-Rated Group . | . . . Highest-Rated Ally . | . . . Total Orders . | . . . Ally Attacks . | . . . Total Damage . | . . . Kills . | . . . Allies Corrupted . | . . . Allies Melted . | . . . Intel | -11 -10 -9 ------- Run | Yrd Mat Mat Robot Analysis Total . | . . . Derelict Logs Recovered . | . . . Drone Launches . | . . . Drone Recoveries . | . . . Exploration | -11 -10 -9 ------------- Run | Yrd Mat Mat Turns Passed 1025 | 234 541 250 Spaces Moved 427 | 111 219 97 Core 8 | 3 . 5 Treads 419 | 108 219 92 Legs . | . . . Wheels . | . . . Hover . | . . . Flight . | . . . Fastest Speed 50 | 50 160 100 Average Speed 159 | 157 160 160 Slowest Speed 200 | 160 160 200 Overloaded Moves . | . . . Propulsion Burnouts . | . . . Robots Hopped . | . . . Cave-ins Triggered . | . . . Exploration Rate (%) 16 | 6 28 14 Regions Visited 2 Branch Regions . Pre-discovered Areas . | . . . Known Exits Taken . | . . . Unknown Exits Taken 2 | 1 1 . Scrap Searched . | . . . Spaces Dug . | . . . Terrain Destroyed . | . . . Melee . | . . . Projectile . | . . . AOE . | . . . Terrain Rammed . | . . . Walls Destroyed . | . . . Machines Disabled . | . . . Actions | -11 -10 -9 --------- Run | Yrd Mat Mat Total 618 | 141 327 150 Wait 38 | . 35 3 Move 425 | 110 218 97 Hop . | . . . Pick Up 17 | 9 7 1 Fast Attach 8 | 6 . 2 Attach 6 | 1 1 4 Detach . | . . . Swap 15 | 2 8 5 Drop 10 | . 9 1 Fire 81 | 13 33 35 Melee 14 | . 12 2 Ram . | . . . Kick . | . . . Crush 4 | . 4 . Escape Stasis . | . . . Rewire . | . . . Trap . | . . . Miscellaneous . | . . . Route ------- -11/Scrapyard -10/Materials -9/Materials History --------- Turn | Location | Event 14 | -11/Scrapyard | Discovered new exit (range 16) 235 | -11/Scrapyard | Entered Materials 318 | -10/Materials | Build established: Mutant 573 | -10/Materials | Discovered new exit (range 16) 708 | -10/Materials | Core integrity fell below 50% 776 | -10/Materials | Entered another Materials area 776 | -9/Materials | Evolved 2 slots: Utility x2 1007 | -9/Materials | Core integrity fell below 50% 1020 | -9/Materials | Core integrity fell below 20% 1026 | -9/Materials | Destroyed by S-10 Pest with Light Assault Rifle Last Messages --------------- 00996_ K-01 Serf collects debris. 01004_ R-06 Scavenger collects Aluminum Leg. 01006_ K-01 Serf collects debris. 01008_ Imp. Treads destroyed. 01008_ R-06 Scavenger collects Sml. Laser. 01009_ K-01 Serf collects debris. 01010_ Critical hit (Burn: +37). 01011_ Mining Laser destroyed. 01013_ K-01 Serf collects debris. 01013_ Lgt. Assault Rifle destroyed. 01014_ Acquired 11 matter. 01016_ K-01 Serf collects debris. 01018_ Ion Engine destroyed. 01019_ Acquired Lgt. EM Pulse Cannon. 01020_ K-01 Serf collects debris. 01020_ G-34 Mercenary destroyed. 01022_ K-01 Serf collects debris. 01024_ M-13 Machinist repairs G-34 Mercenary. 01026_ K-01 Serf collects debris. 01026_ Lgt. EM Pulse Cannon destroyed. Map ----- +----------------------------------------------------+ | ???????????????????????????????????????????????? | | ???????????????????????????????????????????????? | | ???????????????????????????????????????????????? | | ???????????????????????????????????????????????? | | ???????????????????????????????????????????????? | | ???????????????????????????????????????????????? | | ???????????????????????????????????????????????? | | ???????????????????????????????????????????????? | | ???????????????????????????????????????????????? | | ???????????????????????????????????????????????? | | ??????????????????????? ?????????????????????? | | ?????????????????????? ?????????????????????? | | ??????????????????????# ?????????????????????? | | ??????????????????????# ??? ???? ????????????? | | ??????????????????? ## ???????? ????????????? | | ?????????#????? ????#u ##?#??? #????????????? | | ???????????#??# ? ? ## ####? ####?????????? | | ?????????????## ? ? ## ####? ??????????? | | ???#????#??#?#???? ?## ##### ????????????? | | ???????### #######+### s ?????????????? | | ?? ????? ?????????????? | | ????##?? ? ??? ???????????? | | ???##?#??? ? ?? ? ??????????? | | ???????????##?# """"" s ? ? ? ??????????? | | ?? ??#?##???## """"" s#?? ?????????? | | ????#???####?## """""@ ##????? ???????????? | | ############### ###? ? ???????????? | | g ##?? ?? ? ?????????? | | k g #?# ?? ??? ? ???????? | | m%g k #?? ?? ? ?????????? | | w#######% ### ? ???????? | | # # ### ??????????? | | """ """ #"" # #?# ?????????? | | ? """ """ #"" # ### ???????#??? | | """ """ #"T + ### ? ? ??????? | | #"" # ### ??????????? | | #"" # ### ??? ?????#??? | | ?###+###+## # # ### ####????##???# | | ?????? ## ####### ### ####??##?????? | | ???? ?## ####?## ### ###?###?##???? | | ???# ??? ## ####### ### ####?#??#?#?#? | | ???????"??# ####### ### #?#?##??#????? | | ?? #??????# #####?# #?# ##?##??#?#???? | | ????? ????# ####### #?# #???#?####???? | | ? ?????"?## ### ####???#???#?# | | ?????????## #?##????#?? | | ??????????# ##??##??### | | ???????? ?# " #???#????#? | | ?????????##"%" [ #######+######????#??# | | ???????? ?##" [! ##### ##???#????? | +----------------------------------------------------+ Best States ------------- Heat Dissipation 47 Energy Generation 10 Energy Capacity 250 Matter Stores 300 Matter Capacity 300 Sight Range 16 Terrain Scan Range 16 Terrain Scan Density 85 Evasion (%) 40 Recoil Reduction 2 Item Schematics ----------------- None Robot Schematics ------------------ None Fabricated ------------ Nothing Alien Tech Used ----------------- None Achievements -------------- Power Corrupts Challenges ------------ None Game ------ Seed 1 Manual? 1 Play Time 00:13:29 Cumulative 3.8 hours Start 2024.12.01 @ 01:57:04 End 2024.12.01 @ 02:07:43 Sessions 1 Manual Loads 0 Difficulty Rogue Special Mode None Game No. 8 Rogue 6 Adventurer 2 Explorer 0 Win Type - Total 0 Types 0/0/0/0/0/0/0/0/0 Lore% 5 Gallery% 8 Achievement% 9 Wizard Run 0 Options --------- Layout 1 ASCII 0 Keyboard 0 Movement Numpad Keybinds 0 Fullscreen 2 Font 24/Tamsyn Map View 50x35 Zoom Use 0% Tactical HUD 1 Map Filters NONE Filters NONE Steam 1 RUN: e0dd0a4c-ea75-46bd-a8a9-3d7f231dfaac